fUSD/lending_fUSD_20240214
["ID","MTS","AMOUNT","RATE_DAILY","PERIOD"]
[313996854,1707918728224,-563.98279472,0.0003863,7]
[313996855,1707918728233,-257.06983913,0.0003863,7]
[313996856,1707918728243,-1134.09,0.0003863,7]
[313996857,1707918728253,-729.05,0.0003863,7]
[313996858,1707918728261,-622.27,0.0003863,7]
[313996859,1707918728270,-462.29975415,0.0003863,7]
[313996860,1707918728279,-500.0,0.0003863,7]
[313996861,1707918728289,-500.0,0.0003863,7]
[313996862,1707918728299,-500.0,0.0003863,7]
[313996863,1707918728308,-1071.7,0.0003863,7]
[313996864,1707918728318,-500.0,0.0003863,7]
[313996865,1707918728327,-523.37265613,0.0003863,7]
[313996866,1707918728340,-238.83734387,0.0003863,7]
[313996867,1707918728351,-517.99,0.0003863,7]
[313996868,1707918728360,-1842.99,0.0003863,7]
[313996869,1707918728370,-500.0,0.0003863,7]
[313996870,1707918728380,-193.16804422,0.0003863,7]
[313996871,1707918728390,-714.9,0.0003863,7]
[313996872,1707918728400,-500.0,0.0003863,7]
[313996873,1707918728410,-500.0,0.0003863,7]
[313996874,1707918728420,-505.27,0.0003863,7]
[313996875,1707918728429,-1657.14,0.0003863,7]
[313996876,1707918728439,-609.86,0.0003863,7]
[313996877,1707918728450,-500.0,0.0003863,7]
[313996878,1707918728459,-500.0,0.0003863,7]
[313996879,1707918728470,-500.0,0.0003863,7]
[313996880,1707918728479,-500.0,0.0003863,7]
[313996881,1707918728488,-500.0,0.0003863,7]
[313996882,1707918728498,-500.0,0.0003863,7]
[313996883,1707918728509,-1211.81,0.0003863,7]
[313996884,1707918728520,-500.0,0.0003863,7]
[313996885,1707918728531,-500.0,0.0003863,7]
[313996886,1707918728541,-521.97,0.0003863,7]
[313996887,1707918728551,-500.0,0.0003863,7]
[313996888,1707918728561,-500.0,0.0003863,7]
[313996889,1707918728571,-500.0,0.0003863,7]
[313996890,1707918728580,-1086.38,0.0003863,7]
[313996891,1707918728590,-636.91,0.0003863,7]
[313996892,1707918728600,-1019.99229808,0.0003863,7]
[313996893,1707918728610,-322.06047401,0.0003863,7]
[313996894,1707918728620,-500.0,0.0003863,7]
[313996895,1707918728630,-500.0,0.0003863,7]
[313996896,1707918728643,-590.73,0.0003863,7]
[313996897,1707918728653,-846.95,0.0003863,7]
[313996898,1707918728662,-500.0,0.0003863,7]
[313996899,1707918728671,-500.0,0.0003863,7]
[313996900,1707918728682,-500.0,0.0003863,7]
[313996901,1707918728691,-500.0,0.0003863,7]
[313996902,1707918728701,-551.44,0.0003863,7]
[313996903,1707918728710,-608.15,0.0003863,7]
[313996904,1707918728722,-500.0,0.0003863,7]
[313996905,1707918728732,-500.0,0.0003863,7]
[313996906,1707918728742,-524.06,0.0003863,7]
[313996907,1707918728752,-797.65,0.0003863,7]
[313996908,1707918728761,-503.72775613,0.0003863,7]
[313996909,1707918728772,-500.0,0.0003863,7]
[313996910,1707918728781,-640.14,0.0003863,7]
[313996911,1707918728790,-500.0,0.0003863,7]
[313996912,1707918728801,-789.73,0.0003863,7]
[313996913,1707918728811,-500.0,0.0003863,7]
[313996914,1707918728821,-500.0,0.0003863,7]
[313996915,1707918728831,-610.3,0.0003863,7]
[313996916,1707918728841,-903.49,0.0003863,7]
[313996917,1707918728850,-650.72,0.0003863,7]
[313996918,1707918728860,-500.0,0.0003863,7]
[313996919,1707918728870,-500.0,0.0003863,7]
[313996920,1707918728880,-500.0,0.0003863,7]
[313996921,1707918728889,-500.0,0.0003863,7]
[313996922,1707918728899,-500.0,0.0003863,7]
[313996923,1707918728909,-513.00442314,0.0003863,7]
[313996924,1707918728918,-2051.57,0.0003863,7]
[313996925,1707918728927,-845.58,0.0003863,7]
[313996926,1707918728937,-500.0,0.0003863,7]
[313996927,1707918728947,-1484.98,0.0003863,7]
[313996928,1707918728956,-490.98209919,0.0003863,7]
[313996929,1707918728967,-882.95,0.0003863,7]
[313996930,1707918728976,-500.0,0.0003863,7]
[313996931,1707918728985,-500.0,0.0003863,7]
[313996932,1707918728994,-500.0,0.0003863,7]
[313996933,1707918729003,-500.0,0.0003863,7]
[313996934,1707918729013,-709.47,0.0003863,7]
[313996935,1707918729022,-1266.63,0.0003863,7]
[313996936,1707918729033,-500.0,0.0003863,7]
[313996937,1707918729043,-750.02,0.0003863,7]
[313996938,1707918729052,-516.94607852,0.0003863,7]
[313996939,1707918729062,-725.91,0.0003863,7]
[313996940,1707918729072,-676.49,0.0003863,7]
[313996941,1707918729082,-1189.99,0.0003863,7]
[313996942,1707918729092,-1392.58,0.0003863,7]
[313996943,1707918729102,-1081.42,0.0003863,7]
[313996944,1707918729113,-4833.85,0.0003863,7]
[313996945,1707918729124,-545.48,0.0003863,7]
[313996946,1707918729136,-500.0,0.0003863,7]
[313996947,1707918729147,-995.85,0.0003863,7]
[313996948,1707918729158,-500.0,0.0003863,7]
[313996949,1707918729169,-258.96,0.0003863,7]
[313996950,1707918729180,-5617.47,0.0003863,7]
[313996951,1707918729190,-874.25,0.0003863,2]
[313996952,1707918729200,-654.98,0.0003863,7]
[313996953,1707918729211,-500.0,0.0003863,7]
[313996954,1707918729221,-500.0,0.0003863,7]
[313996955,1707918729231,-678.96,0.0003863,7]
[313996956,1707918729242,-1141.89,0.0003863,7]
[313996957,1707918729252,-500.0,0.0003863,7]
[313996958,1707918729262,-500.0,0.0003863,7]
[313996959,1707918729273,-530.39,0.0003863,7]
[313996960,1707918729284,-500.0,0.0003863,7]
[313996961,1707918729295,-500.0,0.0003863,7]
[313996962,1707918729304,-500.0,0.0003863,7]
[313996963,1707918729315,-500.0,0.0003863,7]
[313996964,1707918729326,-11536.61,0.0003863,7]
[313996965,1707918729337,-500.0,0.0003863,7]
[313996966,1707918729347,-500.0,0.0003863,7]
[313996967,1707918729357,-517.23,0.0003863,7]
[313996968,1707918729367,-500.0,0.0003863,7]
[313996969,1707918729377,-500.0,0.0003863,7]
[313996970,1707918729387,-755.03,0.0003863,7]
[313996971,1707918729398,-500.0,0.0003863,7]
[313996972,1707918729408,-500.0,0.0003863,7]
[313996973,1707918729418,-826.33,0.0003863,7]
[313996974,1707918729428,-11052.97,0.0003863,7]
[313996975,1707918729438,-844.03,0.0003863,7]
[313996976,1707918729448,-6593.78,0.0003863,7]
[313996977,1707918729458,-500.0,0.0003863,7]
[313996978,1707918729467,-518.65,0.0003863,7]
[313996979,1707918729477,-1107.9,0.0003863,7]
[313996980,1707918729487,-500.0,0.0003863,7]
[313996981,1707918729496,-1675.75,0.0003863,7]
[313996982,1707918729506,-357.44774003,0.0003863,7]
[313996983,1707918729515,-500.0,0.0003863,7]
[313996984,1707918729524,-500.0,0.0003863,7]
[313996985,1707918729534,-589.43,0.0003863,7]
[313996986,1707918729543,-577.93,0.0003863,7]
[313996987,1707918729554,-832.53,0.0003863,7]
[313996988,1707918729563,-500.0,0.0003863,7]
[313996989,1707918729573,-939.6,0.0003863,7]
[313996990,1707918729583,-731.74,0.0003863,7]
[313996991,1707918729593,-618.79,0.0003863,7]
[313996992,1707918729604,-702.08,0.0003863,7]
[313996993,1707918729613,-500.0,0.0003863,7]
[313996994,1707918729622,-1511.48,0.0003863,7]
[313996995,1707918729635,-500.0,0.0003863,7]
[313996996,1707918729645,-1556.11,0.0003863,7]
[313996997,1707918729654,-500.0,0.0003863,7]
[313996998,1707918729664,-500.0,0.0003863,7]
[313996999,1707918729674,-525.66,0.0003863,7]
[313997000,1707918729683,-500.0,0.0003863,7]
[313997001,1707918729693,-635.32,0.0003863,7]
[313997002,1707918729702,-730.57,0.0003863,7]
[313997003,1707918729712,-694.15,0.0003863,7]
[313997004,1707918729722,-392.09900761,0.0003863,7]
[313997005,1707918729731,-500.0,0.0003863,7]
[313997006,1707918729741,-512.15,0.0003863,7]
[313997007,1707918729751,-4300.1,0.0003863,7]
[313997008,1707918729760,-500.0,0.0003863,7]
[313997009,1707918729770,-553.65,0.0003863,7]
[313997010,1707918729780,-500.0,0.0003863,7]
[313997011,1707918729791,-1367.49,0.0003863,7]
[313997012,1707918729802,-1107.84,0.0003863,7]
[313997013,1707918729813,-797.14,0.0003863,7]
[313997014,1707918729823,-500.0,0.0003863,7]
[313997015,1707918729833,-2703.32,0.0003863,7]
[313997016,1707918729843,-1628.57,0.0003863,7]
[313997017,1707918729852,-500.0,0.0003863,7]
[313997018,1707918729862,-500.0,0.0003863,7]
[313997019,1707918729871,-1290.42,0.0003863,7]
[313997020,1707918729881,-500.0,0.0003863,7]
[313997021,1707918729890,-572.56,0.0003863,7]
[313997022,1707918729900,-2835.77,0.0003863,7]
[313997023,1707918729910,-1120.47,0.0003863,7]
[313997024,1707918729920,-523.92085742,0.0003863,7]
[313997025,1707918730148,-1443.05,0.0003863,7]
[313997026,1707918730158,-517.14,0.0003863,7]
[313997027,1707918730168,-500.0,0.0003863,7]
[313997028,1707918730178,-786.93,0.0003863,7]
[313997029,1707918730188,-500.0,0.0003863,7]
[313997030,1707918730197,-1168.95,0.0003863,7]
[313997031,1707918730207,-1720.24,0.0003863,7]
[313997032,1707918730217,-775.06,0.0003863,7]
[313997033,1707918730227,-1074.02,0.0003863,7]
[313997034,1707918730236,-2232.81965776,0.0003863,7]
[313997035,1707918730254,-2059.91034224,0.0003863,7]
[313997036,1707918730263,-500.0,0.0003863,7]
[313997037,1707918730273,-32.10464846,0.0003863,7]
[313997038,1707918730285,-467.89535154,0.0003863,7]
[313997039,1707918730295,-850.37572021,0.0003863,7]
[313997040,1707918730307,-228.49427979,0.0003863,7]
[313997041,1707918730317,-1016.79050907,0.0003863,7]
[313997042,1707918730859,-1066.97447528,0.00028476,2]
[313997043,1707918730869,-835.32,0.0003589,2]
[313997044,1707918730878,-235.86294,0.00036345,2]
[313997045,1707918730887,-500.0,0.00036712,2]
[313997046,1707918730898,-500.0,0.00036986,2]
[313997047,1707918730907,-500.0,0.00036986,2]
[313997048,1707918730916,-500.0,0.0003726,2]
[313997049,1707918730926,-500.0,0.00037534,2]
[313997050,1707918730935,-500.0,0.00037808,2]
[313997051,1707918730944,-531.61077361,0.00038082,2]
[313997052,1707918730954,-500.0,0.00038082,2]
[313997053,1707918730964,-774.14,0.00038356,7]
[313997054,1707918730973,-500.0,0.00038356,7]
[313997055,1707918730983,-203.12744512,0.00038356,7]
[313997056,1707918730993,-282.265306,0.00038356,7]
[313997057,1707918731002,-1533.531209,0.00038356,7]
[313997058,1707918731011,-884.61201586,0.00038356,7]
[313997059,1707918731041,-648.91919314,0.00038356,7]
[313997060,1707918731052,-282.265312,0.00038356,7]
[313997061,1707918731062,-1533.531209,0.00038356,7]
[313997062,1707918731072,-4041.68949093,0.0003863,7]
[313997063,1707918731082,-492.96183726,0.0003863,7]
[313997064,1707918731091,-766.12,0.0003863,7]
[313997065,1707918731101,-350.42611968,0.0003863,7]
[313997066,1707918731142,-286.0800785,0.0003863,7]
[313997067,1707918731151,-662.79,0.0003863,7]
[313997068,1707918731161,-12071.62,0.0003863,7]
[313997069,1707918731170,-1066.1,0.0003863,7]
[313997070,1707918731180,-500.0,0.0003863,7]
[313997071,1707918731190,-511.12019589,0.0003863,7]
[313997072,1707918731200,-500.0,0.0003863,7]
[313997073,1707918731210,-500.0,0.0003863,7]
[313997074,1707918731220,-17.21752561,0.0003863,7]
[313997075,1707918731232,-2887.35247439,0.0003863,7]
[313997076,1707918731241,-500.0,0.0003863,7]
[313997077,1707918731251,-782.3,0.0003863,7]
[313997078,1707918731260,-244.01669572,0.0003863,7]
[313997079,1707918731271,-255.98330428,0.0003863,7]
[313997080,1707918731281,-500.0,0.0003863,7]
[313997081,1707918731290,-1683.81,0.0003863,7]
[313997082,1707918731301,-1071.21,0.0003863,7]
[313997083,1707918731310,-502.98,0.0003863,7]
[313997084,1707918731320,-500.0,0.0003863,7]
[313997085,1707918731329,-500.0,0.0003863,7]
[313997086,1707918731339,-4434.9,0.0003863,7]
[313997087,1707918731348,-1703.61,0.0003863,7]
[313997088,1707918731359,-501.61,0.0003863,7]
[313997089,1707918731368,-500.0,0.0003863,7]
[313997090,1707918731377,-4728.84,0.0003863,7]
[313997091,1707918731387,-1189.50866557,0.0003863,7]
[313997092,1707918731399,-4698.71133443,0.0003863,7]
[313997093,1707918731409,-520.65,0.0003863,7]
[313997094,1707918731419,-1473.33,0.0003863,7]
[313997095,1707918731428,-170.0521871,0.0003863,7]
[313997096,1707918731438,-758.6,0.0003863,7]
[313997097,1707918731447,-500.0,0.0003863,7]
[313997098,1707918731456,-2346.52,0.0003863,7]
[313997099,1707918731465,-812.43,0.0003863,7]
[313997100,1707918731475,-1129.6,0.0003863,7]
[313997101,1707918731484,-5842.15908219,0.0003863,7]
[313997102,1707918731496,-602.39838594,0.0003863,7]
[313997103,1707918731508,-20039.34253187,0.0003863,7]
[313997104,1707918731517,-500.0,0.0003863,7]
[313997105,1707918731528,-597.23,0.0003863,7]
[313997106,1707918731537,-3981.1235985,0.0003863,7]
[313997107,1707918731558,-269.19498168,0.0003863,7]
[313997108,1707918731583,-216.1211168,0.00029999,2]
[313997109,1707918731592,-1533.531209,0.00038356,7]
[313997110,1707918731601,-1055.52846163,0.0003863,7]
[313997111,1707918731613,-1649.08295819,0.0003863,7]
[313997112,1707918731623,-500.0,0.0003863,7]
[313997113,1707918731633,-15190.55,0.0003863,7]
[313997114,1707918731644,-599.5,0.0003863,7]
[313997115,1707918731654,-500.0,0.0003863,7]
[313997116,1707918731663,-3242.2,0.0003863,7]
[313997117,1707918731674,-500.0,0.0003863,7]
[313997118,1707918731684,-500.0,0.0003863,7]
[313997119,1707918731694,-559.19,0.0003863,7]
[313997120,1707918731704,-974.31,0.0003863,7]
[313997121,1707918731714,-500.0,0.0003863,7]
[313997122,1707918731725,-500.0,0.0003863,7]
[313997123,1707918731735,-2133.28,0.0003863,7]
[313997124,1707918731744,-749.2,0.0003863,7]
[313997125,1707918731754,-500.0,0.0003863,7]
[313997126,1707918731763,-612.19,0.0003863,7]
[313997127,1707918731773,-3984.48,0.0003863,7]
[313997128,1707918731782,-500.0,0.0003863,7]
[313997129,1707918731792,-3434.86,0.0003863,7]
[313997130,1707918731803,-1036.88,0.0003863,7]
[313997131,1707918731813,-2229.52,0.0003863,7]
[313997132,1707918731823,-667.56,0.0003863,7]
[313997133,1707918731832,-500.0,0.0003863,7]
[313997134,1707918731841,-830.29,0.0003863,7]
[313997135,1707918731850,-804.93,0.0003863,7]
[313997136,1707918731859,-879.15,0.0003863,7]
[313997137,1707918731869,-1523.47,0.0003863,7]
[313997138,1707918731879,-500.0,0.0003863,7]
[313997139,1707918731889,-609.93,0.0003863,20]
[313997140,1707918731898,-500.0,0.0003863,7]
[313997141,1707918731908,-857.92,0.0003863,7]
[313997142,1707918731918,-2172.7,0.0003863,7]
[313997143,1707918731928,-500.0,0.0003863,7]
[313997144,1707918731938,-1039.51,0.0003863,7]
[313997145,1707918731947,-66.15443491,0.0003863,7]
[313997146,1707918731964,-599.79556509,0.0003863,7]
[313997147,1707918731973,-659.78,0.0003863,7]
[313997148,1707918731983,-882.28,0.0003863,7]
[313997149,1707918731992,-915.81,0.0003863,7]
[313997150,1707918732002,-500.0,0.0003863,7]
[313997151,1707918732012,-2943.31585715,0.0003863,7]
[313997152,1707918737801,3842.0,0.00023,2]
[313997153,1707918737821,4000.0,0.00023,2]
[313997154,1707918737840,4000.0,0.00023,2]
[313997155,1707918737859,4000.0,0.00023,2]
[313997156,1707918737880,4000.0,0.00023,2]
[313997157,1707918737900,4000.0,0.00023,2]
[313997158,1707918737920,4000.0,0.00023,2]
[313997159,1707918737938,4000.0,0.00023,2]
[313997160,1707918737957,4000.0,0.00023,2]
[313997161,1707918737976,4000.0,0.00023,2]
[313997162,1707918737996,4000.0,0.00023,2]
[313997163,1707918738016,4000.0,0.00023,2]
[313997164,1707918738036,4000.0,0.00023,2]
[313997165,1707918738057,4000.0,0.00023,2]
[313997166,1707918738077,4000.0,0.00023,2]
[313997167,1707918738097,4000.0,0.00023,2]
[313997168,1707918738117,4000.0,0.00023,2]
[313997169,1707918738138,4000.0,0.00023,2]
[313997170,1707918738157,4000.0,0.00023,2]
[313997171,1707918738176,4000.0,0.00023,2]
[313997172,1707918738195,4000.0,0.00023,2]
[313997173,1707918738215,4000.0,0.00023,2]
[313997174,1707918738234,4000.0,0.00023,2]
[313997175,1707918738257,250000.0,0.00023,2]
[313997176,1707918738281,1699013.44531461,0.00023,2]
[313997177,1707918743977,290.58241428,0.00022999,2]
[313997178,1707918748507,4646.48697645,0.00022999,2]
[313997179,1707918751084,837.21809326,0.00022998,2]
[313997180,1707918751566,43302.80546773,0.00022999,2]
[313997181,1707918751894,402.47145121,0.00022998,2]
[313997182,1707918755200,837.21809326,0.00022997,2]
[313997183,1707918761013,837.21809326,0.00022996,2]
[313997184,1707918762468,33552.13206795,0.00022998,2]
[313997186,1707918832422,1174815.60207108,0.00023,2]
[313997187,1707918902592,500.0,0.00023,3]
[313997208,1707919746119,-436.19062659,0.00023538,2]
[313997209,1707919746143,-234.33,0.00023539,2]
[313997210,1707919751103,-500.0,0.000245,3]
[313997211,1707919751126,-150.0,0.00024898,2]
[313997212,1707919751148,-19252.21979484,0.00024899,2]
[313997213,1707919751170,-158.4421612,0.000249,2]
[313997214,1707919751190,-43302.80546773,0.000249,2]
[313997215,1707919751209,-12248.9269,0.0002491,2]
[313997216,1707919751230,-1250.0,0.00025,3]
[313997217,1707919751249,-500.0,0.00025,3]
[313997218,1707919751270,-3000.0,0.00025,2]
[313997219,1707919751290,-150.99,0.00025,2]
[313997220,1707919751310,-150.0,0.00025,2]
[313997221,1707919751330,-504.79,0.00025,2]
[313997222,1707919751351,-3000.0,0.0002501,2]
[313997223,1707919751372,-3000.0,0.0002502,2]
[313997224,1707919751395,-3000.0,0.0002503,2]
[313997225,1707919751418,-499.99,0.0002503,2]
[313997226,1707919751442,-3000.0,0.0002504,2]
[313997227,1707919751467,-3000.0,0.0002505,2]
[313997228,1707919751490,-3000.0,0.0002506,2]
[313997229,1707919751513,-1014.50567623,0.0002507,2]
[313997230,1707919761174,-1985.49432377,0.0002507,2]
[313997231,1707919761195,-3000.0,0.0002508,2]
[313997232,1707919761215,-905.21457623,0.0002509,2]
[313997258,1707919832049,-5170.0,0.00024898,2]
[313997259,1707919832069,-858.16390953,0.00024898,2]
[313997260,1707919832080,-461.67266497,0.00024898,2]
[313997261,1707919832089,-436.19062659,0.00025089,2]
[313997262,1707919832098,-2094.78542377,0.0002509,2]
[313997263,1707919832107,-4281.69006,0.000251,2]
[313997264,1707919832117,-175.42,0.000251,2]
[313997265,1707919832125,-200.0,0.00025136,2]
[313997266,1707919832509,-512.26744547,0.00025136,2]
[313997267,1707919832521,-736.73081961,0.0002515,2]
[313997268,1707919832531,-17789.75579711,0.00025152,2]
[313997269,1707919832544,-6657.06776078,0.00025152,2]
[313997270,1707919832658,-15572.76909605,0.00025152,2]
[313997271,1707919832667,-250.0,0.00025154,2]
[313997272,1707919832677,-1000.0,0.00025201,2]
[313997273,1707919832686,-4180.74,0.00025261,2]
[313997274,1707919832695,-1744.82,0.00025261,2]
[313997275,1707919832704,-250.0,0.00025288,2]
[313997276,1707919832716,-154.23,0.00025343,2]
[313997277,1707919832725,-545.96,0.00025344,2]
[313997278,1707919832735,-500.0,0.00025367,2]
[313997279,1707919832745,-3968.26,0.0002541,2]
[313997280,1707919832754,-191.8,0.00025581,2]
[313997281,1707919832763,-199.24,0.00025607,2]
[313997282,1707919832772,-154.23,0.00025673,2]
[313997283,1707919832781,-518.84,0.00025775,2]
[313997284,1707919832791,-234.33,0.00025803,2]
[313997285,1707919832800,-154.23,0.00026003,2]
[313997286,1707919832809,-154.23,0.00026333,2]
[313997287,1707919832818,-250.0,0.00026534,2]
[313997288,1707919832827,-154.23,0.00026663,2]
[313997289,1707919832837,-1300.0,0.00027,3]
[313997290,1707919832846,-161.84,0.00027397,2]
[313997291,1707919832855,-1006.0,0.000274,2]
[313997292,1707919832864,-500.0,0.000274,7]
[313997293,1707919832873,-500.0,0.000274,7]
[313997294,1707919832882,-518.84,0.00027418,2]
[313997295,1707919832891,-2079.42761823,0.00027786,28]
[313997296,1707919832900,-152.53,0.00027786,2]
[313997297,1707919832909,-161.84,0.00027872,2]
[313997298,1707919832918,-572.15732566,0.00027984,2]
[313997299,1707919832927,-152.19,0.00027989,2]
[313997300,1707919832940,-202.22442285,0.00027993,2]
[313997301,1707919832949,-278.76,0.00027993,2]
[313997302,1707919832958,-204.17365487,0.00027997,2]
[313997303,1707919832969,-162.28352062,0.00027998,2]
[313997304,1707919832978,-358.4877294,0.00027998,2]
[313997305,1707919832987,-626.03266572,0.00027998,2]
[313997306,1707919832996,-1180.36287393,0.00027998,2]
[313997307,1707919833007,-10572.80116167,0.00027998,2]
[313997308,1707919833016,-364.34693458,0.00027998,2]
[313997309,1707919833025,-770.16281459,0.00027998,2]
[313997310,1707919833035,-2102.95106314,0.00027998,2]
[313997311,1707919833044,-203.16196649,0.00027998,2]
[313997312,1707919833053,-419.94549017,0.00027999,2]
[313997313,1707919833062,-155.0,0.00027999,2]
[313997314,1707919833071,-14877.54736799,0.00027999,2]
[313997315,1707919833081,-521407.17756408,0.00028,2]
[313997316,1707919833090,-234.33,0.00028067,2]
[313997317,1707919833100,-196.30356646,0.0002828,2]
[313997318,1707919833109,-161.84,0.00028347,2]
[313997319,1707919833118,-1000.0,0.00028352,2]
[313997320,1707919833128,-100000.0,0.00028377,2]
[313997321,1707919833137,-10524.41264299,0.0002848,7]
[313997322,1707919833146,-1599.39395052,0.0002848,7]
[313997323,1707919833155,-28222.26122454,0.0002848,7]
[313997324,1707919833164,-152.53,0.00028712,2]
[313997325,1707919833174,-1796.37,0.00028772,2]
[313997326,1707919833183,-161.84,0.00028822,2]
[313997327,1707919833192,-1350.0,0.00029,3]
[313997328,1707919833201,-518.84,0.00029062,2]
[313997329,1707919833211,-5678.0,0.00029305,2]
[313997330,1707919833220,-152.53,0.00029638,2]
[313997331,1707919833229,-164.67,0.00029793,2]
[313997332,1707919833239,-1303.35777712,0.0002989,2]
[313997333,1707919833248,-171.39713619,0.0002989,2]
[313997334,1707919833257,-538.89447105,0.00029899,2]
[313997335,1707919833266,-184115.09197504,0.000299,3]
[313997336,1707919833275,-155.0,0.0003,2]
[313997337,1707919833285,-500.0,0.0003,2]
[313997338,1707919833295,-234.33,0.00030331,2]
[313997339,1707919833304,-152.53,0.00030565,2]
[313997340,1707919833314,-518.84,0.00030706,2]
[313997341,1707919833324,-1303.35777707,0.0003075,2]
[313997342,1707919833333,-1575.0,0.00030969,4]
[313997343,1707919833342,-1400.0,0.00031,3]
[313997344,1707919833351,-366.25,0.00031025,3]
[313997345,1707919833361,-234.82290506,0.00031025,3]
[313997346,1707919833370,-713.8231899,0.00031025,3]
[313997347,1707919833379,-1000.0,0.00031502,2]
[313997348,1707919833389,-1303.35777707,0.0003161,3]
[313997349,1707919833398,-180.0,0.00031644,2]
[313997350,1707919833407,-13217.1047237,0.000318,3]
[313997351,1707919833416,-506.70255148,0.00032053,2]
[313997352,1707919833426,-2065.81,0.00032232,2]
[313997353,1707919833435,-11868.17,0.00032232,2]
[313997354,1707919833445,-1339.21,0.00032232,2]
[313997355,1707919833454,-19878.69,0.00032232,30]
[313997356,1707919833464,-518.84,0.0003235,2]
[313997357,1707919833473,-1303.35777707,0.00032471,4]
[313997358,1707919833483,-234.33,0.00032595,2]
[313997359,1707919833493,-2863.0,0.000326,2]
[313997360,1707919833502,-196.30356646,0.0003272,2]
[313997361,1707919833512,-153.0,0.00032877,2]
[313997362,1707919833522,-160.46331719,0.00032938,4]
[313997363,1707919833531,-165.09,0.00033156,2]
[313997364,1707919833541,-78696.26881452,0.000333,3]
[313997365,1707919833550,-1303.35777707,0.00033331,5]
[313997366,1707919833560,-28536.0,0.000334,2]
[313997367,1707919833569,-153.45,0.000335,2]
[313997368,1707919833578,-153.45,0.000335,2]
[313997369,1707919833587,-153.45,0.000335,2]
[313997370,1707919833596,-153.45,0.000335,2]
[313997371,1707919833606,-153.45,0.000335,2]
[313997372,1707919833615,-151.8676074,0.000339,2]
[313997373,1707919833625,-518.84,0.00033994,2]
[313997374,1707919833633,-50000.0,0.00034,14]
[313997375,1707919833643,-1303.35777707,0.00034191,6]
[313997376,1707919833652,-4894.0,0.00034596,30]
[313997377,1707919833661,-1000.0,0.00034652,2]
[313997378,1707919833670,-26838.15157486,0.0003479,2]
[313997379,1707919833679,-26838.15157481,0.0003479,2]
[313997380,1707919833688,-26838.15157481,0.0003479,2]
[313997381,1707919833697,-26838.15157481,0.0003479,2]
[313997382,1707919833706,-26838.15157481,0.0003479,2]
[313997383,1707919833716,-26838.15157481,0.0003479,2]
[313997384,1707919833725,-970.1847867,0.00034799,2]
[313997385,1707919833734,-970.18478666,0.00034799,2]
[313997386,1707919833744,-970.18478666,0.00034799,2]
[313997387,1707919833753,-970.18478666,0.00034799,2]
[313997388,1707919833763,-970.18478666,0.00034799,2]
[313997389,1707919833773,-970.18478666,0.00034799,2]
[313997390,1707919833782,-234.33,0.00034859,2]
[313997391,1707919833791,-1907.22740153,0.000349,2]
[313997392,1707919833801,-1907.22740137,0.000349,2]
[313997393,1707919833809,-1227.61414046,0.000349,2]
[313997394,1707919833823,-517.06332,0.000349,2]
[313997395,1707919833834,-162.54994091,0.000349,2]
[313997396,1707919833843,-1907.22740137,0.000349,2]
[313997397,1707919833853,-1907.22740137,0.000349,2]
[313997398,1707919833862,-153.45,0.000349,2]
[313997399,1707919833871,-153.45,0.000349,2]